Cogmind - Beta 13 @@@ ROGUE MODE // 2024.05.29 @ 23:46:50 Player: na-3J Result: Self-destructed Performance ------------- Evolutions (2) 1000 Regions Visited (3) 600 Robots Destroyed (30) 150 Value Destroyed (690) 690 Prototype IDs (1) 20 Alien Tech Used (0) 0 Bonus (0) 0 TOTAL SCORE: 2460 Bonus ------- None Cogmind --------- Core Integrity 550/550 Matter 0/400 Energy 121/125 System Corruption 0% Temperature Cool (0) Movement Walking (130) Location -8/Materials Parts ------- > --- POWER (1) -------- Light Ion Engine > --- PROPULSION (4) --- Titanium Leg Titanium Leg Titanium Leg Titanium Leg > --- UTILITY (3) ------ High-capacity Storage Unit Medium Matter Pod Weight Redist. System > --- WEAPON (3) ------- Improved Light Cannon Improved Grenade Launcher Improved Grenade Launcher > --- INVENTORY (20) --- Light Treads Light Treads Wheel Compact Wheel Heat Sink Medium Storage Unit Advanced Visual Processing Unit Sensor Array Signal Interpreter Transport Network Coupler Shield Generator Shield Generator Shield Generator Small Laser Assault Rifle Improved Assault Rifle Improved Light Cannon Rocket Launcher Mini Grenade Launcher Peak State ------------ > --- POWER ------------ Light Ion Engine > --- PROPULSION ------- Titanium Leg Titanium Leg Titanium Leg Titanium Leg > --- UTILITY ---------- High-capacity Storage Unit Medium Matter Pod Weight Redist. System > --- WEAPON ----------- Improved Light Cannon Mini Grenade Launcher Improved Grenade Launcher > --- INVENTORY -------- Light Treads Light Treads Wheel Compact Wheel Heat Sink Medium Storage Unit Advanced Visual Processing Unit Sensor Array Signal Interpreter Transport Network Coupler Shield Generator Shield Generator Shield Generator Small Laser Assault Rifle Improved Assault Rifle Improved Light Cannon Rocket Launcher Improved Grenade Launcher [Rating: 27] Favorites ----------- Power Light Ion Engine Engine Light Ion Engine Propulsion Aluminum Leg Leg Aluminum Leg Utility High-capacity Storage Unit Device Weight Redist. System Storage High-capacity Storage Unit Hackware Hacking Suite Protection Medium Armor Plating Weapon Assault Rifle Energy Gun Medium Laser Ballistic Gun Assault Rifle Ballistic Cannon Improved Light Cannon Launcher Rocket Launcher Build | -11 -10 -9 -8 ------- Run | Yrd Mat Mat Mat Slots Evolved 4 | . . 2 2 Power . | . . . . Propulsion 2 | . . 1 1 Utility 1 | . . . 1 Weapon 1 | . . 1 . Parts Attached 34 | 6 14 6 8 Power 4 | 1 2 1 . Engine 4 | 1 2 1 . Core . | . . . . Reactor . | . . . . Propulsion 10 | 2 3 1 4 Treads . | . . . . Leg 10 | 2 3 1 4 Wheel . | . . . . Hover . | . . . . Flight . | . . . . Utility 8 | 1 6 . 1 Device 2 | . 2 . . Storage 4 | 1 2 . 1 Processor . | . . . . Hackware 1 | . 1 . . Protection 1 | . 1 . . Artifact . | . . . . Weapon 12 | 2 3 4 3 Energy Gun 1 | 1 . . . Energy Cannon . | . . . . Ballistic Gun 4 | 1 3 . . Ballistic Cannon 3 | . . 3 . Launcher 4 | . . 1 3 Special Weapon . | . . . . Impact Weapon . | . . . . Slashing Weapon . | . . . . Piercing Weapon . | . . . . Special Melee Weapon . | . . . . Unidentified Prototypes 1 | . 1 . . Parts Lost 3 | . 2 1 . Power 2 | . 1 1 . Propulsion . | . . . . Utility 1 | . 1 . . Weapon . | . . . . Highest Loss Streak 2 | . 2 1 . To Critical Strikes . | . . . . Average Slot Usage (%) 95 | . 97 93 80 Engine 12 | . 13 11 9 Leg 28 | . 27 29 21 Device 9 | . 8 11 9 Storage 12 | . 14 11 13 Hackware 2 | . 3 . . Energy Gun 6 | . 10 . . Ballistic Gun 12 | . 17 5 . Ballistic Cannon 5 | . . 15 9 Launcher 3 | . . 8 18 Naked Turns . | . . . . Heaviest Build 61 | 12 48 55 61 Greatest Support 74 | 20 26 36 74 Greatest Overweight (x) 5 | . 2 2 5 Average Overweight (x) . | . . 1 2 Largest Inventory Capacity 20 | 8 20 20 20 Average Capacity 16 | 6 15 20 20 Most Carried 20 | 6 17 20 20 Average Carried 13 | 3 11 18 19 Final Capacity 20 | 8 20 20 20 Final Carried 19 | 6 17 19 19 Class Distribution -------------------- 68% | Mutant 23% | Scavenger-Gunner 6% | Gunner Dominant Class ---------------- Mutant | -10/Materials Scavenger-Gunner | -9/Materials Gunner | -8/Materials Resources | -11 -10 -9 -8 ----------- Run | Yrd Mat Mat Mat Matter Collected 711 | 260 254 197 . Remotely . | . . . . Salvage Created 799 | . 593 201 5 Parts 62 | . 42 20 . Haulers Intercepted 2 | . 1 1 . Recyclers Shooed 1 | . 1 . . Parts Field Recycled . | . . . . Retrieved Matter . | . . . . Parts Self-Destructed . | . . . . Prevented . | . . . . Kills | -11 -10 -9 -8 ------- Run | Yrd Mat Mat Mat Combat Hostiles Destroyed 17 | . 12 5 . Guns 12 | . 12 . . AOE 5 | . . 5 . Classes Destroyed 9 | . 7 2 . Worker 3 | . 1 2 . Tunneler 1 | . 1 . . Hauler 2 | . 1 1 . Recycler 1 | . 1 . . Operator 3 | . 1 1 1 Watcher 3 | . . 3 . Swarmer 3 | . 3 . . Grunt 12 | . 9 3 . Sentry 2 | . . 2 . Best Kill Streak 6 | . 6 4 1 Combat Bots Only 5 | . 5 3 . Max Kills in Single Turn 3 | . 1 3 1 Gunslinging . | . . . . Exploded 2 | . . 2 . Melee . | . . . . Uniques/NPCs Destroyed . | . . . . Combat | -11 -10 -9 -8 -------- Run | Yrd Mat Mat Mat Hostile Shots Fired 122 | . 90 32 . Missed 32 | . 23 9 . Damage Taken 1126 | . 760 366 . Core 144 | . 93 51 . Absorbed by Shields . | . . . . Regen/Repaired (Parts) 55 | . 7 48 . Core Remaining (%) 83 | 100 62 87 . Volleys Fired 75 | . 57 17 1 Largest 3 | . 2 3 3 Hottest 111 | . 70 111 102 Shots Fired 145 | . 95 47 3 Gun 105 | . 95 10 . Cannon 25 | . . 24 1 Launcher 15 | . . 13 2 Special . | . . . . Kinetic 99 | . 64 34 1 Thermal 31 | . 31 . . Explosive 15 | . . 13 2 Electromagnetic . | . . . . Robot Hit Streak 10 | . 10 5 1 Robot Miss Streak 6 | . 6 3 1 Penetration Max . | . . . . Secondary Targets 4 | . 4 . . Max Gunslinging Chain 1 | . 1 . . Shots Hit Robots 90 | . 66 23 1 Core Hits 50 | . 29 19 2 Critical Kills 1 | . 1 . . Critical Parts Destroyed 1 | . 1 . . Critical Strikes 3 | . 2 1 . Destroy 2 | . 2 . . Blast 1 | . . 1 . Melee Attacks . | . . . . Impact . | . . . . Slashing . | . . . . Piercing . | . . . . Sneak Attacks . | . . . . Combat Hostiles . | . . . . Follow-up Attacks . | . . . . Damage Inflicted 1959 | . 885 1023 51 Guns 957 | . 885 72 . Cannons 260 | . . 240 20 Explosions 742 | . . 711 31 Melee . | . . . . Ramming . | . . . . Kinetic 958 | . 626 312 20 Thermal 259 | . 259 . . Explosive 742 | . . 711 31 Electromagnetic . | . . . . Impact . | . . . . Slashing . | . . . . Piercing . | . . . . Highest Corruption . | . . . . Average Corruption . | . . . . Corruption Purged . | . . . . Corruption Blocked . | . . . . Overload Shots . | . . . . Overflow Damage 20 | . . 20 . Projectiles . | . . . . Explosions 20 | . . 20 . Melee . | . . . . Knockbacks 1 | . . 1 . Impact . | . . . . Kinetic 1 | . . 1 . Secondary . | . . . . Self-Inflicted Damage 64 | . . 64 . Shots 2 | . . 2 . Rammed . | . . . . Targets Rammed . | . . . . Kicked . | . . . . Crushed . | . . . . Highest Temperature 214 | . 214 93 24 Average Temperature 55 | . 71 27 16 Received Heat Transfer 513 | . 390 123 . Siege Activations . | . . . . Robots Corrupted . | . . . . Combat Hostiles . | . . . . Parts Fried . | . . . . Impact Corruptions . | . . . . Robots Melted . | . . . . Combat Hostiles . | . . . . Parts Melted . | . . . . Heat Transferred 777 | . 777 . . Parts Sabotaged . | . . . . Parts Stolen . | . . . . Parts Stripped . | . . . . Power Chain Reactions . | . . . . Alert | -11 -10 -9 -8 ------- Run | Yrd Mat Mat Mat Peak Influence 318 | . 290 318 149 Initial 81 | . . 20 81 Average 104 | . 68 173 142 Maximum Alert Level 1 | . 1 1 . Low Security (%) 85 | 100 95 65 100 Level 1 14 | . 4 34 . Level 2 . | . . . . Level 3 . | . . . . Level 4 . | . . . . Level 5 . | . . . . High Security . | . . . . Max Security . | . . . . Squads Dispatched 3 | . 2 . 1 Investigation 2 | . 2 . . Extermination . | . . . . Reinforcement 1 | . . . 1 Assault . | . . . . Garrison . | . . . . Intercept . | . . . . Searches Triggered . | . . . . Construction Impeded . | . . . . Haulers Reinforced . | . . . . Active Scanning Responses . | . . . . Cargo Convoy Interrupts . | . . . . Stealth | -11 -10 -9 -8 --------- Run | Yrd Mat Mat Mat Distress Signals 1 | . . 1 . Communications Jammed . | . . . . Distress Signals . | . . . . Times Spotted 28 | . 17 10 1 Peak Tracking Total 7 | . 7 4 1 Tactical Retreats 1 | . 1 . . Traps | -11 -10 -9 -8 ------- Run | Yrd Mat Mat Mat Traps Triggered 1 | . 1 . . Indirectly . | . . . . Trap Hack Attempts . | . . . . Triggered . | . . . . Disarmed 6 | . 6 . . Reprogrammed . | . . . . Reused . | . . . . Traps Extracted . | . . . . Installed . | . . . . Triggered . | . . . . Machines | -11 -10 -9 -8 ---------- Run | Yrd Mat Mat Mat Machines Disabled 2 | . . . 2 Max in Single Turn 1 | . . . 1 Machines Repaired . | . . . . Machines Dismantled . | . . . . Machines Sabotaged . | . . . . Overloaded Fab Kills . | . . . . Hacking | -11 -10 -9 -8 --------- Run | Yrd Mat Mat Mat Machines Accessed 5 | . 3 2 . Terminals 3 | . 2 1 . Fabricators . | . . . . Repair Stations 2 | . 1 1 . Recycling Units . | . . . . Scanalyzers . | . . . . Garrison Access . | . . . . Total Hacks 20 | . 12 8 . Successful 16 | . 9 7 . Failed 4 | . 3 1 . Catastrophic . | . . . . Database Lockouts . | . . . . Manual . | . . . . Terminals 14 | . 10 4 . Fabricators . | . . . . Repair Stations 6 | . 2 4 . Recycling Units . | . . . . Scanalyzers . | . . . . Garrison Access . | . . . . Terminal Hacks 11 | . 7 4 . Record 4 | . 2 2 . Terminal Index 1 | . 1 . . Alert Level 2 | . 1 1 . Disarm Traps 1 | . 1 . . Maintenance Status 1 | . 1 . . Hauler Manifests 1 | . . 1 . Zone Layout 1 | . 1 . . Fabricator Hacks . | . . . . Repair Station Hacks 5 | . 2 3 . Scan Component 3 | . 1 2 . Repair 2 | . 1 1 . Recycling Unit Hacks . | . . . . Scanalyzer . | . . . . Garrison Access Hacks . | . . . . Unauthorized Hacks . | . . . . Terminals . | . . . . Fabricators . | . . . . Repair Stations . | . . . . Recycling Units . | . . . . Scanalyzers . | . . . . Garrison Access . | . . . . Data Cores Recovered 2 | . 1 1 . Used 1 | . 1 . . Hacking Detections 3 | . 2 1 . Full Trace Events 1 | . 1 . . Feedback Events . | . . . . Feedback Blocked . | . . . . Robot Schematics Acquired . | . . . . Robots Built . | . . . . Authchips . | . . . . Time . | . . . . Total Robot Build Rating . | . . . . Part Schematics Acquired . | . . . . Parts Built . | . . . . Authchips . | . . . . Time . | . . . . Total Part Build Rating . | . . . . Parts Repaired 2 | . 1 1 . Time 58 | . 26 32 . Parts Recycled . | . . . . Recycled Matter . | . . . . Retrieved Matter . | . . . . Retrieved Components . | . . . . Parts Scanalyzed . | . . . . Part Schematics Acquired . | . . . . Parts Damaged . | . . . . Bothacking | -11 -10 -9 -8 ------------ Run | Yrd Mat Mat Mat Used RIF Installer . | . . . . Robots Hacked . | . . . . Non-combat . | . . . . Combat . | . . . . Robot Hacks Applied . | . . . . Relay Couplers Released . | . . . . Fabnet Peak Effective % . | . . . . Robots Rewired . | . . . . Allies Hacked . | . . . . Hacks Repelled . | . . . . Allies | -11 -10 -9 -8 -------- Run | Yrd Mat Mat Mat Total Allies . | . . . . Largest Group . | . . . . Highest-Rated Group . | . . . . Highest-Rated Ally . | . . . . Total Orders . | . . . . Ally Attacks . | . . . . Total Damage . | . . . . Kills . | . . . . Allies Corrupted . | . . . . Allies Melted . | . . . . Intel | -11 -10 -9 -8 ------- Run | Yrd Mat Mat Mat Robot Analysis Total . | . . . . Derelict Logs Recovered . | . . . . Drone Launches . | . . . . Drone Recoveries . | . . . . Exploration | -11 -10 -9 -8 ------------- Run | Yrd Mat Mat Mat Turns Passed 1873 | 70 1089 635 79 Spaces Moved 879 | 52 538 276 13 Core 20 | 14 . . 6 Treads . | . . . . Legs 859 | 38 538 276 7 Wheels . | . . . . Hover . | . . . . Flight . | . . . . Fastest Speed 50 | 50 120 190 130 Average Speed 165 | 101 157 191 219 Slowest Speed 300 | 120 260 260 300 Overloaded Moves . | . . . . Propulsion Burnouts . | . . . . Robots Hopped . | . . . . Cave-ins Triggered . | . . . . Exploration Rate (%) 21 | 5 49 26 7 Regions Visited 3 Branch Regions . Pre-discovered Areas . | . . . . Known Exits Taken . | . . . . Unknown Exits Taken 3 | 1 1 1 . Scrap Searched . | . . . . Spaces Dug . | . . . . Terrain Destroyed 167 | . . 114 53 Melee . | . . . . Projectile 5 | . . 5 . AOE 162 | . . 109 53 Terrain Rammed . | . . . . Walls Destroyed . | . . . . Machines Disabled . | . . . . Actions | -11 -10 -9 -8 --------- Run | Yrd Mat Mat Mat Total 1171 | 69 691 349 62 Wait 107 | . 40 37 30 Move 876 | 51 537 275 13 Hop . | . . . . Pick Up 56 | 12 29 9 6 Fast Attach . | . . . . Attach 26 | 6 9 6 5 Detach 2 | . . 2 . Swap 8 | . 5 . 3 Drop 21 | . 14 3 4 Fire 75 | . 57 17 1 Melee . | . . . . Ram . | . . . . Kick . | . . . . Crush . | . . . . Escape Stasis . | . . . . Rewire . | . . . . Trap . | . . . . Miscellaneous . | . . . . Route ------- -11/Scrapyard -10/Materials -9/Materials -8/Materials History --------- Turn | Location | Event 2 | -11/Scrapyard | Met Revision 17 16 | -11/Scrapyard | Discovered new exit (range 14) 71 | -11/Scrapyard | Entered Materials 221 | -10/Materials | Repaired Hover Unit 304 | -10/Materials | Build established: Mutant 699 | -10/Materials | Discovered new exit (range 15) 1160 | -10/Materials | Entered another Materials area 1160 | -9/Materials | Evolved 2 slots: Propulsion x1, Weapon x1 1641 | -9/Materials | Build established: Scavenger-Gunner 1673 | -9/Materials | Repaired Imp. Light Cannon 1780 | -9/Materials | Discovered new exit (range 9) 1795 | -9/Materials | Entered another Materials area 1795 | -8/Materials | Evolved 2 slots: Propulsion x1, Utility x1 1874 | -8/Materials | Self-destructed Last Messages --------------- T-07 Excavator is excavating. U-05 Engineer lays Concrete. K-01 Serf collects debris. U-05 Engineer lays Concrete. T-07 Excavator is excavating. U-05 Engineer lays Concrete. Acquired Imp. Grenade Launcher. U-05 Engineer lays Concrete. K-01 Serf collects debris. Acquired Imp. Grenade Launcher. U-05 Engineer lays Concrete. K-01 Serf collects debris. U-05 Engineer lays Concrete. U-05 Engineer lays Concrete. U-05 Engineer builds a Wall. U-05 Engineer lays Concrete. U-05 Engineer builds a Wall. K-01 Serf collects debris. The unstable cave ceiling collapses. U-05 Engineer lays Concrete. Map ----- +----------------------------------------------------+ | ?????????????????????????????????????????????????? | | ?????????????????????????????????????????????????? | | ?????????????????????????????????????????????????? | | ?????????????????????????????????????????????????? | | ?????????????????????????????????????????????????? | | ?????????????????????????????????????????????????? | | ?????????????????????????????????????????????????? | | ?????????????????????????????????????????????????? | | ????????????????????????? ?????????????????????? | | ???????????????????????? ???? #???????????????? | | ????????????????????????# ???? #???????????????? | | ????????????????????????# h"?? #???????????????? | | ????????????????????????# ?? +???????????????? | | ????????????????????????# #???????????????? | | ????????????????????????# """ #######?????????? | | ????????????????????????# """ #? ???????? | | ????????????????????????# """ # ???????? | | ????????????????????????# ????????? | | ????????????????????????# #?????????? | | ????????????????????????# k#?????????? | | ????????????????????????# #?????????? | | ???????????????????###### #?????????? | | ???????????????????# #?????????? | | ???????????????????+ #?????????? | | ???????????????????# = #?????????? | | ???????????????????## = @ = #?????????? | | ????????????????????# == # # #?????????? | | ????????????????????# ??????????? | | ????????????????????# #????????? | | ????????????????????# # # #??????? | | ????????????????????# ???????? | | ????????????????????# u # ???????? | | ????????????????????# ???????? | | ????????????????????#### # #### # ????????? | | ???????????????????????######### ????????? | | ???????????????????????????????? # ?????????? | | ????????????????????????????????########?????????? | | | | | | | | | | | | | | | | | | | | | | | | | | | +----------------------------------------------------+ Best States ------------- Heat Dissipation 31 Energy Generation 10 Energy Capacity 125 Matter Stores 300 Matter Capacity 400 Sight Range 16 Robot Scan Range 14 Terrain Scan Density 10 Additional Mass Support 6 Armor Coverage 225 Evasion (%) 55 Offensive Hacking 10 Item Schematics ----------------- None Robot Schematics ------------------ None Fabricated ------------ Nothing Alien Tech Used ----------------- None Achievements -------------- Dynamic Key Challenges ------------ None Game ------ Seed NodeAntimissileModule Manual? 0 Play Time 00:21:37 Cumulative 2.6 hours Start 2024.05.16 @ 14:53:16 End 2024.05.29 @ 23:46:50 Sessions 3 Manual Loads 0 Difficulty Rogue Special Mode None Game No. 8 Rogue 8 Adventurer 0 Explorer 0 Win Type - Total 0 Types 0/0/0/0/0/0/0/0/0 Lore% 2 Gallery% 7 Achievement% 7 Wizard Run 0 Options --------- Layout 0 ASCII 0 Keyboard 0 Movement Numpad Keybinds 0 Fullscreen 1 Font 24/Smallcaps Map View 76x50 Zoom Use 0% Tactical HUD 0 Map Filters NONE Filters NONE Steam 1 RUN: e016fb01-2dca-4bd4-9d7c-8ad64a28af1f